fUSD/lending_fUSD_20250823
["ID","MTS","AMOUNT","RATE_DAILY","PERIOD"]
[381016821,1755948521194,1054.09155815,0.00028767,120]
[381016822,1755948522418,414.80029894,0.00028,120]
[381016824,1755948525958,1009.0,0.0002876,120]
[381016826,1755948529406,211.6809265,0.00025,120]
[381016827,1755948529826,303.63060325,0.00025851,120]
[381016828,1755948533387,611.9,0.00028767,120]
[381016831,1755948632026,-263.40842253,0.000107,2]
[381016832,1755948632038,-195.43037746,0.0001153,2]
[381016833,1755948632051,-215.41962254,0.0001153,2]
[381016834,1755948632060,-458.40799562,0.0001153,2]
[381016835,1755948632272,-825.54200438,0.0001153,2]
[381016836,1755948632282,-300.0,0.000116,4]
[381016837,1755948632291,-500.0,0.0001165,2]
[381016838,1755948632302,-1200.0,0.00011651,2]
[381016839,1755948632311,-6703.85247436,0.00011652,2]
[381016840,1755948632327,-592.05,0.00011652,2]
[381016841,1755948632338,-5103.21752564,0.00011652,2]
[381016844,1755948632348,-600.0,0.000117,4]
[381016847,1755948632357,-500.0,0.0001177,2]
[381016850,1755948632366,-900.0,0.000118,4]
[381016851,1755948632376,-1300.0,0.000119,4]
[381016852,1755948632386,-210.23795547,0.000119,2]
[381016857,1755948632535,-218.0,0.000119,2]
[381016858,1755948632785,-2056.96300715,0.0001195,2]
[381016859,1755948632824,-845.68479375,0.0001195,2]
[381016861,1755948638064,-264.02320651,0.000119,2]
[381016862,1755948638076,-1115.70938853,0.0001195,2]
[381016863,1755948638088,-500.0,0.00011975,2]
[381016864,1755948638097,-195.41551148,0.00011999,2]
[381016865,1755948638107,-150.0,0.00011999,2]
[381016866,1755948638117,-1301.56720411,0.00012,2]
[381016867,1755948638142,-2271.63880693,0.00012,2]
[381016869,1755948638372,-3097564.44561976,0.00012,2]
[381016870,1755948638382,-143747.03,0.00012,2]
[381016872,1755948638391,-2156418.82671943,0.00012,2]
[381016901,1755948640094,-1980108.29527211,0.00012,2]
[381016902,1755948640105,-9534.25,0.00012,2]
[381016903,1755948640116,-562.96,0.00012092,2]
[381016904,1755948640126,-1082.72941392,0.00012099,2]
[381016905,1755948640136,-152.22,0.00012199,2]
[381016906,1755948640146,-152.35,0.00012199,2]
[381016907,1755948640156,-150.29,0.00012199,2]
[381016908,1755948640167,-150.48,0.00012199,2]
[381016909,1755948640177,-305.09,0.00012199,2]
[381016910,1755948640188,-302.44,0.00012199,2]
[381016911,1755948640197,-151.62,0.00012199,2]
[381016912,1755948640207,-302.25,0.00012199,2]
[381016913,1755948640217,-303.35,0.00012199,2]
[381016914,1755948640227,-151.25,0.00012199,2]
[381016915,1755948640237,-150.78,0.00012199,2]
[381016916,1755948640248,-152.04,0.00012199,2]
[381016917,1755948640259,-152.01,0.00012199,2]
[381016918,1755948640269,-2000.0,0.00012199,2]
[381016919,1755948640279,-179.68,0.00012232,2]
[381016920,1755948640289,-250.0,0.00012444,2]
[381016921,1755948640299,-210.23795538,0.00012556,2]
[381016922,1755948640311,-500.0,0.0001276,2]
[381016923,1755948640323,-250.0,0.0001276,2]
[381016924,1755948640332,-2500.0,0.0001276,2]
[381016925,1755948640341,-310.0,0.0001276,2]
[381016926,1755948640351,-300.0,0.0001276,2]
[381016927,1755948640359,-1000.0,0.00012778,2]
[381016928,1755948640368,-1082.72941392,0.00012788,2]
[381016929,1755948640377,-1000.0,0.00012793,2]
[381016930,1755948640386,-1680.0,0.00012816,2]
[381016931,1755948640396,-214.2,0.00012888,2]
[381016932,1755948640405,-210.66,0.00012888,2]
[381016933,1755948640414,-152.73,0.00012888,2]
[381016935,1755948640423,-300.8,0.00012888,2]
[381016937,1755948640432,-410.85,0.00012971,2]
[381016938,1755948640441,-67511.12560944,0.00013,2]
[381016940,1755948640451,-4343.9577659,0.00013,2]
[381016943,1755948640460,-741.0,0.00013042,2]
[381016945,1755948640470,-255.0,0.00013079,2]
[381016947,1755948640480,-213.0,0.0001308,2]
[381016949,1755948640489,-741.0,0.00013103,2]
[381016951,1755948640498,-500.0,0.00013145,2]
[381016953,1755948640511,-741.0,0.00013152,2]
[381016955,1755948640528,-741.0,0.00013167,2]
[381016957,1755948640537,-741.0,0.00013193,2]
[381016959,1755948640546,-210.23795538,0.00013211,2]
[381016960,1755948640555,-2000.0,0.0001322,2]
[381016963,1755948640565,-741.0,0.00013259,2]
[381016965,1755948640574,-458.60200496,0.00013294,2]
[381016967,1755948640583,-160.0,0.00013294,2]
[381016969,1755948640593,-212.10093811,0.00013294,2]
[381016970,1755948640603,-844.27675029,0.00013373,2]
[381016972,1755948640613,-1022.0,0.000134,2]
[381016974,1755948640623,-5888.0,0.00013402,2]
[381016977,1755948640634,-5888.0,0.00013407,2]
[381016979,1755948640644,-741.0,0.00013407,2]
[381016980,1755948640653,-211.57,0.00013408,2]
[381016981,1755948640663,-300.29,0.00013408,2]
[381016982,1755948640672,-214.93,0.00013408,2]
[381016983,1755948640681,-1802.57699074,0.00013424,2]
[381016984,1755948640690,-332.02,0.00013425,2]
[381016985,1755948640699,-150.93,0.00013425,2]
[381016986,1755948640708,-741.0,0.00013447,2]
[381016987,1755948640717,-5888.0,0.00013448,2]
[381016988,1755948640726,-2000.0,0.00013454,2]
[381016989,1755948640735,-894.0,0.00013455,2]
[381016990,1755948640744,-640.55,0.00013455,2]
[381016992,1755948640754,-3373.0,0.00013455,2]
[381016993,1755948640763,-925.0,0.00013455,2]
[381016995,1755948640772,-1255.0,0.00013455,2]
[381016997,1755948640781,-2030.0,0.00013455,2]
[381016999,1755948640790,-21510.0,0.00013455,2]
[381017001,1755948640799,-741.0,0.00013475,2]
[381017003,1755948640809,-250.0,0.00013499,2]
[381017005,1755948640819,-5800.0,0.00013512,2]
[381017008,1755948640828,-741.0,0.00013512,2]
[381017010,1755948640837,-741.0,0.00013518,2]
[381017012,1755948640846,-5800.0,0.0001352,2]
[381017014,1755948640855,-5800.0,0.0001352,2]
[381017016,1755948640864,-741.0,0.00013529,2]
[381017017,1755948640874,-5800.0,0.00013529,2]
[381017020,1755948640883,-5888.0,0.00013531,2]
[381017022,1755948640893,-5800.0,0.00013537,2]
[381017024,1755948640902,-295.446,0.00013554,2]
[381017025,1755948640912,-6811.82,0.00013554,2]
[381017026,1755948640921,-150.0,0.00013564,2]
[381017027,1755948640931,-150.0,0.00013564,2]
[381017028,1755948640940,-150.0,0.00013564,2]
[381017029,1755948640950,-150.0,0.00013564,2]
[381017030,1755948640959,-500.0,0.00013564,2]
[381017031,1755948640968,-150.0,0.00013564,2]
[381017032,1755948640978,-150.0,0.00013564,2]
[381017033,1755948640987,-150.0,0.00013564,2]
[381017034,1755948641002,-500.0,0.00013564,2]
[381017035,1755948641011,-150.0,0.00013564,2]
[381017036,1755948641020,-473.0,0.00013564,2]
[381017037,1755948641029,-1270.0,0.00013564,2]
[381017038,1755948641039,-214.94581657,0.00013564,2]
[381017039,1755948641048,-845.0,0.00013564,2]
[381017040,1755948641057,-170.00674333,0.00013567,2]
[381017041,1755948641068,-200.0,0.00013588,2]
[381017042,1755948641079,-1000.0,0.00013598,2]
[381017043,1755948641092,-5000.0,0.00013598,2]
[381017044,1755948641101,-1000.0,0.000136,2]
[381017045,1755948641110,-1000.0,0.000136,2]
[381017046,1755948641120,-1000.0,0.000136,2]
[381017047,1755948641131,-1000.0,0.000136,2]
[381017048,1755948641141,-150.0,0.000136,2]
[381017049,1755948641150,-150.0,0.000136,2]
[381017050,1755948641160,-200.0,0.000136,2]
[381017051,1755948641169,-5811.09681635,0.00013663,2]
[381017052,1755948641178,-212.67,0.00013668,2]
[381017053,1755948641188,-150.0,0.00013684,2]
[381017054,1755948641198,-500.0,0.00013684,2]
[381017055,1755948641207,-323.3988717,0.00013685,2]
[381017056,1755948641217,-412.17503256,0.00013685,2]
[381017057,1755948641227,-589.72735428,0.00013686,2]
[381017058,1755948641236,-500.95119342,0.00013686,2]
[381017059,1755948641245,-678.50351513,0.00013686,2]
[381017060,1755948641255,-5888.0,0.00013686,2]
[381017061,1755948641264,-767.27967599,0.00013687,2]
[381017062,1755948641274,-856.05583685,0.00013687,2]
[381017063,1755948641284,-2822.1461071,0.00013688,2]
[381017064,1755948641295,-944.83199771,0.00013688,2]
[381017065,1755948641306,-1033.60815857,0.00013688,2]
[381017066,1755948641316,-799.21,0.00013691,2]
[381017067,1755948641329,-799.21,0.00013691,2]
[381017068,1755948641338,-170.00674333,0.00013692,2]
[381017069,1755948641348,-2000.0,0.00013697,2]
[381017070,1755948641359,-300.0,0.00013697,2]
[381017071,1755948641369,-400.0,0.00013698,2]
[381017072,1755948641379,-403.84345816,0.00013698,2]
[381017073,1755948641388,-400.0,0.00013698,2]
[381017074,1755948641398,-402.29152902,0.00013698,2]
[381017075,1755948641407,-10354.4000706,0.00013698,2]
[381017076,1755948641417,-200.0,0.00013698,2]
[381017077,1755948641427,-400.0,0.00013698,2]
[381017078,1755948641437,-400.8069759,0.00013698,2]
[381017079,1755948641446,-400.0,0.00013698,2]
[381017080,1755948641455,-707.26,0.00013698,2]
[381017081,1755948641465,-400.0,0.00013698,2]
[381017082,1755948641474,-400.0,0.00013698,2]
[381017083,1755948641483,-403.17863241,0.00013698,2]
[381017084,1755948641493,-400.0,0.00013698,2]
[381017085,1755948641502,-584.18,0.00013698,2]
[381017086,1755948641511,-400.0,0.00013698,2]
[381017087,1755948641521,-823.23,0.00013698,2]
[381017088,1755948641530,-591.19,0.00013698,2]
[381017089,1755948641540,-400.0,0.00013698,2]
[381017090,1755948641549,-400.0,0.00013698,2]
[381017091,1755948641559,-408.16,0.00013698,2]
[381017092,1755948641569,-400.0,0.00013698,2]
[381017093,1755948641578,-400.0,0.00013698,2]
[381017094,1755948641588,-400.0,0.00013698,2]
[381017095,1755948641597,-400.0,0.00013698,2]
[381017096,1755948641606,-400.0,0.00013698,2]
[381017097,1755948641616,-401.79903019,0.00013698,2]
[381017098,1755948641626,-432.51936995,0.00013698,2]
[381017099,1755948641636,-400.0,0.00013698,2]
[381017100,1755948641645,-400.0,0.00013698,2]
[381017101,1755948641655,-400.0,0.00013698,2]
[381017102,1755948641665,-669.8,0.00013698,2]
[381017103,1755948641674,-400.0,0.00013698,2]
[381017104,1755948641684,-652.36,0.00013698,2]
[381017105,1755948641693,-400.0,0.00013698,2]
[381017106,1755948641702,-400.0,0.00013698,2]
[381017107,1755948641712,-400.0,0.00013698,2]
[381017108,1755948641721,-400.0,0.00013698,2]
[381017109,1755948641730,-400.0,0.00013698,2]
[381017110,1755948641740,-400.0,0.00013698,2]
[381017111,1755948641749,-400.0,0.00013698,2]
[381017112,1755948641759,-400.0,0.00013698,2]
[381017113,1755948641768,-400.0,0.00013698,2]
[381017114,1755948641777,-400.0,0.00013698,2]
[381017115,1755948641787,-400.0,0.00013698,2]
[381017116,1755948641797,-401.70918314,0.00013698,2]
[381017117,1755948641806,-718.29,0.00013698,2]
[381017118,1755948641815,-484.65,0.00013698,2]
[381017119,1755948641825,-401.84126967,0.00013698,2]
[381017120,1755948641835,-437.89324797,0.00013698,2]
[381017121,1755948641844,-400.0,0.00013698,2]
[381017122,1755948641853,-400.0,0.00013698,2]
[381017123,1755948641863,-400.0,0.00013698,2]
[381017124,1755948641873,-400.0,0.00013698,2]
[381017125,1755948641882,-400.0,0.00013698,2]
[381017126,1755948641892,-1519.72,0.00013698,2]
[381017127,1755948641902,-400.0,0.00013698,2]
[381017128,1755948641912,-400.0,0.00013698,2]
[381017129,1755948641927,-373.15057565,0.00013698,2]
[381017130,1755948641937,-401.37943436,0.00013698,2]
[381017131,1755948641948,-1062.57,0.00013698,2]
[381017132,1755948641958,-400.0,0.00013698,2]
[381017133,1755948641967,-400.0,0.00013698,2]
[381017134,1755948641976,-400.0,0.00013698,2]
[381017135,1755948641986,-596.19,0.00013698,2]
[381017136,1755948641998,-403.18,0.00013698,2]
[381017137,1755948642009,-400.0,0.00013698,2]
[381017138,1755948642018,-400.0,0.00013698,2]
[381017139,1755948642027,-402.15427249,0.00013698,2]
[381017140,1755948642037,-498.02,0.00013698,2]
[381017141,1755948642047,-686.0,0.00013698,2]
[381017142,1755948642056,-426.64,0.00013698,2]
[381017143,1755948642066,-671.13,0.00013698,2]
[381017144,1755948642079,-400.0,0.00013698,2]
[381017145,1755948642088,-542.91,0.00013698,2]
[381017146,1755948642098,-400.0,0.00013698,2]
[381017147,1755948642107,-401.99337387,0.00013698,2]
[381017148,1755948642117,-484.52,0.00013698,2]
[381017149,1755948642126,-406.38427549,0.00013698,2]
[381017150,1755948642136,-400.0,0.00013698,2]
[381017151,1755948642146,-402.96979918,0.00013698,2]
[381017152,1755948642156,-400.0,0.00013698,2]
[381017153,1755948642165,-400.0,0.00013698,2]
[381017154,1755948642176,-400.0,0.00013698,2]
[381017155,1755948642186,-655.64,0.00013698,2]
[381017156,1755948642196,-401.51702026,0.00013698,2]
[381017157,1755948642205,-400.0,0.00013698,2]
[381017158,1755948642493,-579.14,0.00013698,2]
[381017159,1755948642503,-400.0,0.00013698,2]
[381017160,1755948642512,-400.0,0.00013698,2]
[381017161,1755948642522,-400.0,0.00013698,2]
[381017162,1755948642531,-400.0,0.00013698,2]
[381017163,1755948642541,-400.0,0.00013698,2]
[381017164,1755948642550,-400.0,0.00013698,2]
[381017165,1755948642559,-400.0,0.00013698,2]
[381017166,1755948642569,-400.0,0.00013698,2]
[381017167,1755948642579,-400.0,0.00013698,2]
[381017168,1755948642589,-400.0,0.00013698,2]
[381017169,1755948642598,-611.42,0.00013698,2]
[381017170,1755948642608,-400.0,0.00013698,2]
[381017171,1755948642617,-400.0,0.00013698,2]
[381017172,1755948642627,-434.28,0.00013698,2]
[381017173,1755948642638,-488.35,0.00013698,2]
[381017174,1755948642647,-400.0,0.00013698,2]
[381017175,1755948642658,-400.0,0.00013698,2]
[381017176,1755948642668,-578.91,0.00013698,2]
[381017177,1755948642678,-400.0,0.00013698,2]
[381017178,1755948642691,-622.06,0.00013698,2]
[381017179,1755948642700,-557.79,0.00013698,2]
[381017180,1755948642711,-400.0,0.00013698,2]
[381017181,1755948642720,-400.0,0.00013698,2]
[381017182,1755948642730,-400.0,0.00013698,2]
[381017183,1755948642740,-400.0,0.00013698,2]
[381017184,1755948642749,-400.0,0.00013698,2]
[381017185,1755948642759,-401.91998842,0.00013698,2]
[381017186,1755948642768,-400.0,0.00013698,2]
[381017187,1755948642777,-400.0,0.00013698,2]
[381017188,1755948642787,-446.38,0.00013698,2]
[381017189,1755948642797,-428.94,0.00013698,2]
[381017190,1755948642807,-400.0,0.00013698,2]
[381017191,1755948642817,-400.0,0.00013698,2]
[381017192,1755948642826,-400.0,0.00013698,2]
[381017193,1755948642836,-400.0,0.00013698,2]
[381017195,1755948642846,-529.57754124,0.00013698,2]
[381017198,1755948642855,-403.09495321,0.00013698,2]
[381017200,1755948642865,-400.0,0.00013698,2]
[381017202,1755948642875,-400.0,0.00013698,2]
[381017204,1755948642884,-400.0,0.00013698,2]
[381017205,1755948642894,-400.0,0.00013698,2]
[381017207,1755948642904,-434.3,0.00013698,2]
[381017209,1755948642914,-697.18,0.00013698,2]
[381017210,1755948642923,-680.71,0.00013698,2]
[381017211,1755948642932,-446.05,0.00013698,2]
[381017212,1755948642942,-648.86,0.00013698,2]
[381017213,1755948642953,-401.91643668,0.00013698,2]
[381017214,1755948642963,-400.0,0.00013698,2]
[381017215,1755948642973,-445.15,0.00013698,2]
[381017216,1755948642983,-1476.63,0.00013698,2]
[381017217,1755948642993,-400.0,0.00013698,2]
[381017218,1755948643009,-400.0,0.00013698,2]
[381017219,1755948643018,-400.0,0.00013698,2]
[381017220,1755948643028,-400.0,0.00013698,2]
[381017221,1755948643038,-400.0,0.00013698,2]
[381017222,1755948643049,-400.0,0.00013698,2]
[381017223,1755948643059,-400.0,0.00013698,2]
[381017224,1755948643068,-400.0,0.00013698,2]
[381017225,1755948643078,-400.0,0.00013698,2]
[381017226,1755948643087,-714.21,0.00013698,2]
[381017227,1755948643097,-400.0,0.00013698,2]
[381017228,1755948643106,-400.0,0.00013698,2]
[381017229,1755948643115,-400.0,0.00013698,2]
[381017230,1755948643125,-400.0,0.00013698,2]
[381017231,1755948643135,-400.0,0.00013698,2]
[381017232,1755948643144,-400.0,0.00013698,2]
[381017233,1755948643154,-519.87,0.00013698,2]
[381017234,1755948643164,-400.0,0.00013698,2]
[381017235,1755948643173,-400.0,0.00013698,2]
[381017236,1755948643182,-400.0,0.00013698,2]
[381017237,1755948643192,-400.0,0.00013698,2]
[381017238,1755948643202,-409.8377083,0.00013698,2]
[381017239,1755948643212,-531.08,0.00013698,2]
[381017240,1755948643222,-620.42,0.00013698,2]
[381017241,1755948643232,-400.0,0.00013698,2]
[381017242,1755948643241,-400.0,0.00013698,2]
[381017243,1755948643251,-400.0,0.00013698,2]
[381017244,1755948643260,-400.0,0.00013698,2]
[381017245,1755948643269,-400.0,0.00013698,2]
[381017246,1755948643279,-542.8,0.00013698,2]
[381017247,1755948643288,-400.0,0.00013698,2]
[381017248,1755948643297,-400.0,0.00013698,2]
[381017249,1755948643307,-400.0,0.00013698,2]
[381017250,1755948643316,-560.81,0.00013698,2]
[381017251,1755948643326,-704.32,0.00013698,2]
[381017252,1755948643337,-547.03,0.00013698,2]
[381017253,1755948643347,-400.0,0.00013698,2]
[381017254,1755948643356,-481.6,0.00013698,2]
[381017255,1755948643366,-409.66,0.00013698,2]
[381017256,1755948643375,-576.9,0.00013698,2]
[381017257,1755948643385,-964.23,0.00013698,2]
[381017258,1755948643394,-400.0,0.00013698,2]
[381017259,1755948643404,-400.0,0.00013698,2]
[381017260,1755948643413,-529.81,0.00013698,2]
[381017261,1755948643423,-400.0,0.00013698,2]
[381017262,1755948643433,-400.0,0.00013698,2]
[381017263,1755948643443,-632.83,0.00013698,2]
[381017265,1755948643453,-400.0,0.00013698,2]
[381017266,1755948643462,-510.55,0.00013698,2]
[381017267,1755948643472,-458.82,0.00013698,2]
[381017268,1755948643481,-400.0,0.00013698,2]
[381017269,1755948643491,-400.0,0.00013698,2]
[381017270,1755948643500,-400.0,0.00013698,2]
[381017271,1755948643511,-401.87034738,0.00013698,2]
[381017272,1755948643520,-428.13,0.00013698,2]
[381017273,1755948643535,-519.13,0.00013698,2]
[381017274,1755948643545,-400.0,0.00013698,2]
[381017275,1755948643555,-447.17527132,0.00013698,2]
[381017276,1755948643565,-400.0,0.00013698,2]
[381017277,1755948643575,-400.0,0.00013698,2]
[381017278,1755948643584,-400.0,0.00013698,2]
[381017279,1755948643594,-462.62,0.00013698,2]
[381017280,1755948643605,-400.0,0.00013698,2]
[381017281,1755948643614,-173.28223163,0.00013698,2]
[381017282,1755948643624,-400.0,0.00013698,2]
[381017283,1755948643634,-400.0,0.00013698,2]
[381017284,1755948643644,-182.81540994,0.00013698,2]
[381017285,1755948643653,-404.06,0.00013698,2]
[381017286,1755948643663,-400.0,0.00013698,2]
[381017287,1755948643673,-575.51,0.00013698,2]
[381017288,1755948643683,-200.0,0.00013698,2]
[381017289,1755948643693,-400.0,0.00013698,2]
[381017290,1755948643703,-400.0,0.00013698,2]
[381017291,1755948643713,-400.4723534,0.00013698,2]
[381017292,1755948643724,-400.0,0.00013698,2]
[381017293,1755948643734,-400.0,0.00013698,2]
[381017294,1755948643744,-400.67286751,0.00013698,2]
[381017295,1755948643754,-400.0,0.00013698,2]
[381017296,1755948643764,-400.0,0.00013698,2]
[381017297,1755948643774,-400.0,0.00013698,2]
[381017298,1755948643784,-400.0,0.00013698,2]
[381017299,1755948643796,-401.82219832,0.00013698,2]
[381017300,1755948643807,-458.64,0.00013698,2]
[381017301,1755948643819,-400.0,0.00013698,2]
[381017302,1755948643829,-401.17200427,0.00013698,2]
[381017303,1755948643840,-466.97,0.00013698,2]
[381017304,1755948643850,-400.0,0.00013698,2]
[381017305,1755948643860,-400.0,0.00013698,2]
[381017306,1755948643870,-400.0,0.00013698,2]
[381017307,1755948643880,-400.0,0.00013698,2]
[381017308,1755948643893,-400.0,0.00013698,2]
[381017309,1755948643904,-400.0,0.00013698,2]
[381017310,1755948643915,-400.0,0.00013698,2]
[381017311,1755948643925,-400.95,0.00013698,2]
[381017312,1755948643939,-401.55671918,0.00013698,2]
[381017313,1755948643949,-629.47,0.00013698,2]
[381017314,1755948643959,-538.76266732,0.00013698,2]
[381017315,1755948643969,-783.24,0.00013698,2]
[381017316,1755948643979,-400.0,0.00013698,2]
[381017317,1755948643989,-400.0,0.00013698,2]
[381017318,1755948644005,-580.94,0.00013698,2]
[381017319,1755948644015,-400.0,0.00013698,2]
[381017320,1755948644027,-673.78,0.00013698,2]
[381017321,1755948644039,-538.24,0.00013698,2]
[381017322,1755948644048,-401.78924056,0.00013698,2]
[381017323,1755948644059,-400.0,0.00013698,2]
[381017324,1755948644072,-400.0,0.00013698,2]
[381017325,1755948644084,-453.24,0.00013698,2]
[381017326,1755948644094,-584.32,0.00013698,2]
[381017327,1755948644105,-509.76,0.00013698,2]
[381017328,1755948644115,-400.0,0.00013698,2]
[381017329,1755948644126,-468.07,0.00013698,2]
[381017330,1755948644136,-456.02,0.00013698,2]
[381017331,1755948644146,-400.0,0.00013698,2]
[381017332,1755948644156,-400.0,0.00013698,2]
[381017333,1755948644167,-400.0,0.00013698,2]
[381017334,1755948644178,-400.0,0.00013698,2]
[381017335,1755948644190,-532.21,0.00013698,2]
[381017336,1755948644201,-400.0,0.00013698,2]
[381017337,1755948644211,-400.0,0.00013698,2]
[381017338,1755948644222,-865.07,0.00013698,2]
[381017339,1755948644232,-400.0,0.00013698,2]
[381017340,1755948644242,-517.01,0.00013698,2]
[381017341,1755948644253,-408.97,0.00013698,2]
[381017342,1755948644264,-400.0,0.00013698,2]
[381017343,1755948644275,-400.0,0.00013698,2]
[381017344,1755948644285,-400.0,0.00013698,2]
[381017345,1755948644295,-400.0,0.00013698,2]
[381017346,1755948644305,-401.48467901,0.00013698,2]
[381017347,1755948644314,-400.0,0.00013698,2]
[381017348,1755948644324,-609.39,0.00013698,2]
[381017349,1755948644334,-400.0,0.00013698,2]
[381017350,1755948644347,-590.54,0.00013698,2]
[381017351,1755948644358,-400.0,0.00013698,2]
[381017352,1755948644368,-608.53,0.00013698,2]
[381017353,1755948644378,-530.7,0.00013698,2]
[381017354,1755948644388,-400.2655382,0.00013698,2]
[381017355,1755948644398,-400.0,0.00013698,2]
[381017356,1755948644408,-465.23,0.00013698,2]
[381017357,1755948644418,-400.0,0.00013698,2]
[381017358,1755948644429,-400.0,0.00013698,2]
[381017359,1755948644439,-400.0,0.00013698,2]
[381017360,1755948644449,-400.0,0.00013698,2]
[381017361,1755948644459,-403.24542882,0.00013698,2]
[381017362,1755948644468,-400.0,0.00013698,2]
[381017363,1755948644478,-537.11,0.00013698,2]
[381017364,1755948644488,-400.0,0.00013698,2]
[381017365,1755948644498,-400.0,0.00013698,2]
[381017366,1755948644508,-400.0,0.00013698,2]
[381017367,1755948644518,-894.47,0.00013698,2]
[381017368,1755948644527,-451.16,0.00013698,2]
[381017369,1755948644537,-400.0,0.00013698,2]
[381017370,1755948644547,-400.0,0.00013698,2]
[381017371,1755948644556,-400.0,0.00013698,2]
[381017372,1755948644566,-400.0,0.00013698,2]
[381017373,1755948644579,-400.0,0.00013698,2]
[381017374,1755948644589,-400.0,0.00013698,2]
[381017375,1755948644599,-597.75,0.00013698,2]
[381017376,1755948644609,-554.13,0.00013698,2]
[381017377,1755948644619,-402.65497833,0.00013698,2]
[381017378,1755948644630,-881.87,0.00013698,2]
[381017379,1755948644641,-400.0,0.00013698,2]
[381017380,1755948644651,-400.0,0.00013698,2]
[381017381,1755948644662,-400.0,0.00013698,2]
[381017382,1755948644672,-400.0,0.00013698,2]
[381017383,1755948644683,-400.0,0.00013698,2]
[381017384,1755948644693,-400.0,0.00013698,2]
[381017385,1755948644703,-400.0,0.00013698,2]
[381017386,1755948644714,-477.34,0.00013698,2]
[381017387,1755948644724,-489.36,0.00013698,2]
[381017388,1755948644735,-400.0,0.00013698,2]
[381017389,1755948644745,-400.0,0.00013698,2]
[381017390,1755948644755,-527.68,0.00013698,2]
[381017391,1755948644765,-744.52,0.00013698,2]
[381017392,1755948644775,-400.0,0.00013698,2]
[381017393,1755948644785,-400.81595317,0.00013698,2]
[381017394,1755948644795,-400.0,0.00013698,2]
[381017395,1755948644805,-885.96,0.00013698,2]
[381017396,1755948644816,-842.51,0.00013698,2]
[381017397,1755948644826,-400.0,0.00013698,2]
[381017398,1755948644839,-400.0,0.00013698,2]
[381017399,1755948644849,-400.0,0.00013698,2]
[381017400,1755948644859,-765.59,0.00013698,2]
[381017401,1755948644870,-601.26,0.00013698,2]
[381017402,1755948644880,-400.65861162,0.00013698,2]
[381017403,1755948644890,-506.63,0.00013698,2]
[381017404,1755948644904,-735.47,0.00013698,2]
[381017405,1755948644919,-716.18,0.00013698,2]
[381017406,1755948644929,-400.0,0.00013698,2]
[381017407,1755948644939,-440.52,0.00013698,2]
[381017408,1755948644949,-400.0,0.00013698,2]
[381017409,1755948644959,-400.0,0.00013698,2]
[381017410,1755948644969,-856.84,0.00013698,2]
[381017411,1755948644979,-447.15,0.00013698,2]
[381017412,1755948644989,-777.44,0.00013698,2]
[381017413,1755948645003,-400.0,0.00013698,2]
[381017414,1755948645013,-545.54,0.00013698,2]